bitfinex-derivatives/quotes_SOLF0:USTF0_20250820
["timestamp","ask_amount","ask_price","bid_price","bid_amount"]
[1755695539333,5.7886,180.86,180.78,2.98]
[1755695539726,4.09779128,180.85,180.75,2.98]
[1755695539927,3.35399782,180.86,180.75,2.98]
[1755695540225,9.62638804,180.85,180.79,5.5303]
[1755695540431,5.5287,180.85,180.77,2.98]
[1755695540734,5.5292,180.84,180.78,5.5307]
[1755695540934,5.5292,180.84,180.77,2.98]
[1755695541134,3.35399782,180.86,180.77,2.98]
[1755695541434,4.09825444,180.85,180.77,2.98]
[1755695541632,0.26,180.83,180.77,2.98]
[1755695542026,0.26,180.81,180.77,2.98]
[1755695542228,0.26,180.81,180.73,2.98]
[1755695542428,5.5304,180.8,180.74,5.5319]
[1755695542632,0.26,180.81,180.72,2.98]
[1755695542838,4.09794465,180.8,180.72,2.98]
[1755695543040,5.5307,180.79,180.72,2.98]
[1755695544134,5.5307,180.79,180.72,8.5124]
[1755695544635,5.5307,180.79,180.72,2.98]
[1755695544847,5.7909,180.78,180.72,2.98]
[1755695545142,0.26,180.78,180.72,2.98]
[1755695545732,0.25,180.76,180.71,5.5327]
[1755695545928,3.34399782,180.8,180.68,3.04]
[1755695546134,8.87419782,180.8,180.68,3.04]
[1755695546336,3.34399782,180.8,180.68,3.04]
[1755695546728,5.5308,180.78,180.68,3.04]
[1755695547536,0.25,180.8,180.68,3.04]
[1755695548042,0.25,180.8,180.74,5.5316]
[1755695548236,0.25,180.8,180.73,3.04]
[1755695548635,3.34399782,180.84,180.73,3.04]
[1755695549040,3.34399782,180.84,180.76,5.5309]
[1755695549343,5.5295,180.82,180.73,3.04]
[1755695549536,0.25,180.83,180.73,3.04]
[1755695549845,0.25,180.81,180.73,3.04]
[1755695550141,3.34399782,180.81,180.73,3.04]
[1755695550333,0.25,180.81,180.73,3.04]
[1755695551434,8.62319782,180.83,180.77,5.5309]
[1755695551840,0.25,180.84,180.75,3.04]
[1755695552542,3.09399782,180.77,180.68,3.04]
[1755695552743,8.62509782,180.77,180.7,5.5328]
[1755695552940,3.09399782,180.77,180.68,3.04]
[1755695553338,0.25,180.76,180.68,3.04]
[1755695553942,5.5322,180.73,180.68,8.5736]
[1755695554142,5.7822,180.73,180.68,3.04]
[1755695554339,3.09399782,180.71,180.64,0.96302856]
[1755695554643,0.25,180.7,180.64,0.96302856]
[1755695554948,5.5337,180.68,180.61,5.5357]
[1755695555650,0.25,180.7,180.59,4.0034018]
[1755695555847,0.25,180.7,180.6,3.04]
[1755695556048,0.25,180.7,180.63,5.5352]
[1755695556241,8.62669782,180.71,180.63,5.5352]
[1755695556242,8.62669782,180.71,180.63,3.04]
[1755695556437,3.09399782,180.71,180.63,3.04]
[1755695556848,3.09399782,180.71,180.65,5.5344]
[1755695557348,3.09399782,180.71,180.65,5.5345]
[1755695557649,3.09399782,180.71,180.63,3.04]
[1755695557845,5.5313,180.76,180.69,5.5331]
[1755695558041,3.34399782,180.77,180.68,3.04]
[1755695558648,5.5313,180.76,180.7,5.5328]
[1755695558946,3.34399782,180.77,180.68,3.04]
[1755695559342,5.5313,180.76,180.7,5.533]
[1755695559738,3.34399782,180.77,180.68,3.04]
[1755695561954,3.34399782,180.77,180.71,5.5325]
[1755695562453,3.34399782,180.77,180.68,3.04]
[1755695562750,3.34399782,180.77,180.71,5.5325]
[1755695563246,8.87509782,180.77,180.71,5.5325]
[1755695563451,5.7811,180.77,180.71,5.5325]
[1755695564251,0.25,180.77,180.68,3.04]
[1755695565656,0.25,180.74,180.7,5.533]
[1755695565850,0.25,180.74,180.7,8.573]
[1755695566854,5.7813,180.76,180.71,8.5726]
[1755695567151,5.7813,180.76,180.72,3.04]
[1755695567152,0.25,180.76,180.72,3.04]
[1755695567554,3.09399782,180.8,180.72,3.04]
[1755695567852,3.09399782,180.77,180.69,8.5731]
[1755695568158,3.09399782,180.77,180.69,3.04]
[1755695568654,5.5317,180.75,180.7,5.533]
[1755695568856,5.7817,180.75,180.7,8.573]
[1755695569060,5.5319,180.74,180.65,3.09399782]
[1755695569252,0.25,180.73,180.65,3.04]
[1755695570256,5.5327,180.71,180.66,8.5741]
[1755695570447,5.7827,180.71,180.66,8.5741]
[1755695570853,3.09399782,180.74,180.68,3.04]
[1755695571652,3.09399782,180.74,180.68,8.5735]
[1755695572149,0.25,180.72,180.68,8.5735]
[1755695572456,3.34399782,180.74,180.69,3.04]
[1755695572847,3.34399782,180.74,180.7,5.5328]
[1755695573048,0.25,180.73,180.7,5.5328]
[1755695573356,3.34399782,180.74,180.61,3.04]
[1755695573952,5.5331,180.71,180.61,3.04]
[1755695574148,3.34399782,180.74,180.61,3.04]
[1755695574748,5.5331,180.7,180.66,3.04]
[1755695575149,5.7831,180.7,180.66,3.04]
[1755695575653,3.34399782,180.71,180.6,3.04]
[1755695576452,0.25,180.7,180.6,3.04]
[1755695576956,5.5344,180.66,180.61,5.5356]
[1755695577156,0.25,180.66,180.62,2.83]
[1755695577657,5.5346,180.65,180.62,2.83]
[1755695577850,0.25,180.66,180.62,2.83]
[1755695578047,0.25,180.66,180.62,8.3655]
[1755695578258,5.5341,180.67,180.63,2.83]
[1755695578456,0.25,180.67,180.63,2.83]
[1755695578645,5.5345,180.66,180.63,2.83]
[1755695578850,0.25,180.67,180.63,2.83]
[1755695579250,5.7842,180.67,180.63,2.83]
[1755695579451,0.25,180.67,180.63,2.83]
[1755695580366,3.09399782,180.7,180.64,2.83]
[1755695580558,0.25,180.69,180.61,2.83]
[1755695581255,5.5337,180.68,180.64,5.5349]
[1755695581449,5.5337,180.68,180.65,2.83]
[1755695581855,5.7834,180.69,180.65,8.3646]
[1755695582651,8.62709782,180.7,180.66,8.3642]
[1755695582855,3.35399782,180.7,180.58,2.83]
[1755695583252,5.5343,180.67,180.58,2.83]
[1755695583450,3.35399782,180.7,180.58,2.83]
[1755695583854,5.7935,180.69,180.65,5.5346]
[1755695584055,0.26,180.69,180.63,2.83]
[1755695584563,5.5339,180.68,180.63,2.83]
[1755695584759,5.5339,180.68,180.64,2.83]
[1755695584760,5.7939,180.68,180.64,2.83]
[1755695586654,5.5339,180.68,180.63,5.5352]
[1755695586854,5.5339,180.68,180.65,2.83]
[1755695587161,5.5339,180.68,180.63,5.5352]
[1755695587359,5.5339,180.68,180.65,2.83]
[1755695587558,5.7935,180.69,180.65,2.83]
[1755695588361,5.5338,180.68,180.65,2.83]
[1755695589062,3.09399782,180.7,180.56,4.05739962]
[1755695589260,0.26,180.72,180.64,2.83]
[1755695589657,5.7935,180.69,180.65,2.83]
[1755695590258,5.7935,180.69,180.6,2.83]
[1755695590460,0.26,180.69,180.64,5.5347]
[1755695590656,0.26,180.69,180.65,2.83]
[1755695591162,0.26,180.72,180.66,2.83]
[1755695591565,5.5335,180.69,180.64,5.5348]
[1755695591770,5.5335,180.69,180.65,2.83]
[1755695592074,0.26,180.72,180.6,2.83]
[1755695592666,5.5332,180.7,180.6,2.83]
[1755695592873,0.26,180.72,180.6,2.83]
[1755695593175,5.5333,180.7,180.65,5.5346]
[1755695593362,5.7933,180.7,180.65,5.5346]
[1755695593567,5.7933,180.7,180.59,3.09399782]
[1755695593568,0.26,180.7,180.66,2.83]
[1755695593973,0.26,180.69,180.66,2.83]
[1755695595364,5.5337,180.68,180.66,2.83]
[1755695596275,5.7935,180.69,180.66,2.83]
[1755695596576,0.26,180.73,180.63,2.83]
[1755695596771,7.18769379,180.72,180.63,2.83]
[1755695596970,3.09399782,180.72,180.63,2.83]
[1755695597265,5.5333,180.7,180.65,5.5343]
[1755695597679,5.5324,180.73,180.67,5.5338]
[1755695597969,3.09399782,180.74,180.62,3.09399782]
[1755695598169,3.09399782,180.74,180.63,2.83]
[1755695598370,5.5325,180.72,180.67,5.5338]
[1755695598570,5.5325,180.72,180.69,2.83]
[1755695598873,0.26,180.75,180.63,2.83]
[1755695599075,4.09691449,180.74,180.68,5.5335]
[1755695599274,0.26,180.79,180.66,2.83]
[1755695599486,4.09610933,180.78,180.66,2.83]
[1755695599778,4.09610933,180.77,180.71,5.5326]
[1755695599978,5.5308,180.78,180.71,5.5326]
[1755695600183,9.62730839,180.77,180.7,2.83]
[1755695600375,0.26,180.79,180.7,2.83]
[1755695600577,4.09599204,180.78,180.7,2.83]
[1755695600778,4.09599204,180.77,180.71,5.5326]
[1755695600970,5.5308,180.78,180.71,5.5326]
[1755695601177,4.09564822,180.77,180.71,5.5326]
[1755695601375,5.5308,180.78,180.71,5.5326]
[1755695601584,4.35519679,180.77,180.72,5.5325]
[1755695601788,0.26,180.77,180.74,2.83]
[1755695602485,3.35399782,180.8,180.69,2.83]
[1755695602781,4.09457676,180.79,180.69,2.83]
[1755695602978,4.09457676,180.78,180.75,2.83]
[1755695603185,0.26,180.79,180.75,2.83]
[1755695604484,0.26,180.79,180.76,2.83]
[1755695604879,514.6495,180.82,180.76,2.83]
[1755695605079,4.09322591,180.81,180.76,8.3613]
[1755695605281,4.35322591,180.8,180.76,8.3613]
[1755695605481,509.12,180.82,180.78,2.83]
[1755695605687,4.09218942,180.81,180.78,2.83]
[1755695605989,137.69,180.82,180.78,2.83]
[1755695606188,0.25,180.86,180.8,3.12]
[1755695606381,4.0915039,180.85,180.75,3.12]
[1755695606684,0.25,180.86,180.75,3.12]
[1755695606876,0.25,180.86,180.81,5.5297]
[1755695607082,3.09399782,180.89,180.67,3.12]
[1755695607083,0.25,180.82,180.67,3.12]
[1755695607282,3.34399782,180.79,180.73,5.5321]
[1755695607474,3.34399782,180.79,180.72,3.12]
[1755695607475,4.09008181,180.78,180.72,3.12]
[1755695607677,3.34399782,180.79,180.72,3.12]
[1755695607881,4.09008235,180.78,180.72,3.12]
[1755695608083,3.34399782,180.79,180.72,3.12]
[1755695608279,0.25,180.75,180.65,3.12]
[1755695608585,5.532,180.74,180.67,5.5338]
[1755695608783,0.25,180.75,180.65,3.12]
[1755695608981,3.09399782,180.73,180.65,3.12]
[1755695609178,0.25,180.7,180.65,3.12]
[1755695610177,5.5329,180.71,180.65,3.12]
[1755695610381,0.25,180.7,180.65,3.12]
[1755695610890,0.25,180.69,180.65,3.12]
[1755695611182,0.25,180.68,180.64,82.44030119]
[1755695611390,0.25,180.67,180.64,82.44030119]
[1755695611988,0.25,180.67,180.63,8.6552]
[1755695612189,0.25,180.67,180.63,3.12]
[1755695612385,0.25,180.66,180.6,3.12]
[1755695612786,5.535,180.65,180.6,3.12]
[1755695612981,0.25,180.64,180.6,3.12]
[1755695614597,5.7847,180.65,180.58,5.5368]
[1755695615693,5.7847,180.65,180.58,8.6568]
[1755695616189,0.25,180.65,180.58,3.12]
[1755695616589,0.25,180.65,180.6,5.536]
[1755695616890,0.25,180.65,180.61,3.12]
[1755695617089,3.09399782,180.67,180.59,5.5364]
[1755695617287,5.5355,180.63,180.58,3.12]
[1755695617487,0.25,180.61,180.58,3.12]
[1755695617683,3.34399782,180.61,180.55,3.12]
[1755695618189,3.34399782,180.61,180.5,0.96370862]
[1755695618393,0.25,180.6,180.5,4.08370862]
[1755695618585,0.25,180.6,180.51,3.12]
[1755695618788,5.5366,180.59,180.53,5.5381]
[1755695618985,0.25,180.6,180.51,3.12]
[1755695619190,3.09399782,180.58,180.51,3.12]
[1755695619589,0.25,180.57,180.51,3.12]
[1755695619790,0.25,180.57,180.5,3.12]
[1755695620892,0.25,180.57,180.51,5.5389]
[1755695621591,5.7874,180.57,180.51,5.5389]
[1755695622190,0.25,180.55,180.51,3.12]
[1755695622789,3.09399782,180.58,180.51,3.12]
[1755695623387,8.63109782,180.58,180.52,5.5384]
[1755695623588,3.09399782,180.58,180.51,3.12]
[1755695624496,0.25,180.57,180.53,5.5382]
[1755695625396,3.09399782,180.58,180.54,5.538]
[1755695625696,3.34399782,180.58,180.53,3.12]
[1755695625990,0.25,180.57,180.53,8.6582]
[1755695626197,0.25,180.57,180.53,3.12]
[1755695626786,3.09399782,180.6,180.46,3.12]
[1755695627591,3.09399782,180.6,180.56,8.6572]
[1755695627790,3.34399782,180.6,180.56,8.6572]
[1755695628594,0.25,180.59,180.56,5.5372]
[1755695628994,0.25,180.59,180.53,3.12]
[1755695629490,0.25,180.59,180.56,5.5372]
[1755695629893,0.25,180.59,180.53,3.12]
[1755695630097,0.25,180.59,180.56,8.6571]
[1755695630290,0.25,180.59,180.56,3.12]
[1755695630695,0.25,180.59,180.56,8.6573]
[1755695630896,0.25,180.59,180.48,3.12]
[1755695631098,5.5373,180.57,180.51,5.5389]
[1755695631493,5.5373,180.57,180.48,3.12]
[1755695632691,5.5373,180.57,180.52,5.5386]
[1755695632891,0.25,180.56,180.48,3.12]
[1755695634485,8.63129782,180.57,180.51,5.5388]
[1755695634686,0.25,180.55,180.51,8.6588]
[1755695635093,0.25,180.55,180.52,5.5386]
[1755695635994,0.26,180.57,180.53,5.5383]
[1755695636393,3.09399782,180.59,180.53,5.5383]
[1755695636600,0.26,180.56,180.52,8.6385]
[1755695637499,0.26,180.55,180.52,8.6385]
[1755695637888,0.26,180.55,180.52,5.5385]
[1755695638692,5.5372,180.57,180.52,5.5385]
[1755695638894,0.26,180.57,180.53,5.5382]
[1755695640096,3.35399782,180.59,180.53,5.5383]
[1755695640395,5.7969,180.58,180.54,3.1]
[1755695640595,0.26,180.57,180.53,5.5382]
[1755695640894,0.26,180.57,180.53,8.6382]
[1755695641292,0.26,180.56,180.53,8.6382]
[1755695641701,0.26,180.56,180.53,3.1]
[1755695642397,0.26,180.55,180.52,5.5385]
[1755695642704,0.26,180.55,180.51,5.5388]
[1755695642902,0.26,180.55,180.51,3.1]
[1755695643295,3.09399782,180.59,180.51,3.1]
[1755695643503,3.35399782,180.56,180.45,3.1]
[1755695643802,3.09399782,180.53,180.45,3.1]
[1755695643999,0.26,180.52,180.45,3.1]
[1755695644398,5.7987,180.52,180.48,3.1]
[1755695644598,0.26,180.51,180.48,3.1]
[1755695644804,0.26,180.51,180.48,8.6398]
[1755695645100,8.63239782,180.53,180.48,3.1]
[1755695645305,3.09399782,180.53,180.42,3.09399782]
[1755695645502,3.09399782,180.53,180.5,3.1]
[1755695646000,3.09399782,180.53,180.51,5.5389]
[1755695646200,3.09399782,180.53,180.5,3.1]
[1755695647301,3.35399782,180.53,180.5,8.6391]
[1755695648598,3.09399782,180.56,180.44,3.1]
[1755695649003,0.26,180.58,180.43,11.0829]
[1755695649004,0.26,180.58,180.55,5.5377]
[1755695649200,3.09399782,180.59,180.45,3.09399782]
[1755695649403,0.26,180.55,180.46,3.1]
[1755695650301,0.26,180.54,180.51,5.5388]
[1755695650499,0.26,180.54,180.46,3.1]
[1755695650702,5.5386,180.53,180.49,5.5395]
[1755695651003,0.26,180.53,180.49,3.1]
[1755695651403,0.26,180.53,180.5,5.5391]
[1755695651697,3.09399782,180.56,180.43,3.1]
[1755695651897,5.5375,180.56,180.43,3.1]
[1755695652096,3.35399782,180.57,180.43,3.1]
[1755695652294,9.5965242,180.56,180.43,3.1]
[1755695652507,4.0591242,180.55,180.43,3.1]
[1755695652899,3.35399782,180.57,180.43,3.1]
[1755695653100,4.06291072,180.56,180.43,3.1]
[1755695653299,4.06291072,180.55,180.43,3.1]
[1755695653499,3.35399782,180.57,180.43,3.1]
[1755695653702,5.7978,180.55,180.51,5.5387]
[1755695654100,0.26,180.54,180.51,5.5387]
[1755695654499,0.26,180.54,180.51,8.6387]
[1755695655414,4.07253044,180.53,180.52,5.5386]
[1755695656303,0.26,180.54,180.52,5.5386]
[1755695656506,0.26,180.54,180.48,3.1]
[1755695656702,0.26,180.54,180.42,97.01781224]
[1755695656703,4.07539859,180.53,180.5,3.1]
[1755695656906,5.7978,180.55,180.51,8.6388]
[1755695657206,4.07557471,180.54,180.51,3.1]
[1755695657400,4.07557471,180.53,180.51,3.1]
[1755695657600,4.07557471,180.52,180.51,8.639]
[1755695657903,4.33557471,180.54,180.51,8.639]
[1755695658106,4.07557471,180.53,180.51,8.639]
[1755695658407,4.07557471,180.52,180.51,8.639]
[1755695660411,3.09399782,180.58,180.52,5.5385]
[1755695660709,0.26,180.55,180.52,5.5385]
[1755695660905,4.08457031,180.54,180.52,5.5385]
[1755695661105,4.08457031,180.53,180.52,5.5385]
[1755695661299,4.08457031,180.53,180.47,3.1]
[1755695661509,4.08457031,180.52,180.46,3.1]
[1755695661709,0.26,180.6,180.49,3.1]
[1755695661912,4.08655545,180.59,180.49,3.1]
[1755695662110,4.08655545,180.58,180.49,3.1]
[1755695662299,4.08655545,180.57,180.49,3.1]
[1755695662498,4.08655545,180.56,180.5,3.1]
[1755695662811,4.08655545,180.55,180.47,3.1]
[1755695663008,4.08655545,180.54,180.47,3.1]
[1755695663211,4.08655545,180.53,180.47,3.1]
[1755695663412,5.5372,180.57,180.47,3.1]
[1755695663710,4.09070577,180.56,180.47,3.1]
[1755695663909,4.09070577,180.55,180.47,3.1]
[1755695664113,4.09070577,180.54,180.47,3.1]
[1755695664306,4.09070577,180.53,180.47,3.1]
[1755695664506,0.26,180.57,180.47,3.1]
[1755695664706,4.09111137,180.56,180.47,3.1]
[1755695665007,9.28075747,180.62,180.42,82.84041442]
[1755695665008,4.09111137,180.55,180.49,3.1]
[1755695665206,0.26,180.61,180.56,5.5373]
[1755695665406,0.26,180.59,180.56,5.5373]
[1755695665606,4.0903477,180.58,180.56,5.5373]
[1755695665801,4.0903477,180.57,180.56,5.5373]
[1755695666006,4.0903477,180.57,180.56,8.5173]
[1755695666511,0.26,180.59,180.56,8.5173]
[1755695666706,4.09008322,180.58,180.56,8.5173]
[1755695666918,0.27,180.58,180.54,5.5378]
[1755695667111,5.8069,180.58,180.55,2.98]
[1755695667514,5.8069,180.58,180.55,8.5175]
[1755695667912,0.27,180.56,180.5,2.98]
[1755695669514,0.27,180.56,180.54,5.5378]
[1755695670016,0.27,180.56,180.5,2.98]
[1755695670217,0.27,180.56,180.53,5.5381]
[1755695670405,0.27,180.56,180.49,2.98]
[1755695670605,0.27,180.56,180.54,5.5378]
[1755695671215,0.27,180.56,180.55,5.5378]
[1755695671810,5.537,180.58,180.55,5.5378]
[1755695672113,4.08704681,180.57,180.55,5.5378]
[1755695672311,5.5395,180.5,180.42,82.84041442]
[1755695672516,0.27,180.49,180.45,2.98]
[1755695673013,0.27,180.49,180.46,5.5403]
[1755695673214,0.27,180.49,180.46,8.5203]
[1755695674220,0.27,180.49,180.43,2.98]
[1755695674415,5.8098,180.49,180.43,2.98]
[1755695675311,0.27,180.49,180.43,2.98]
[1755695675515,0.27,180.51,180.43,2.98]
[1755695675717,0.27,180.49,180.43,2.98]
[1755695675912,5.8104,180.47,180.43,8.5213]
[1755695676114,3.36399782,180.52,180.44,2.98]
[1755695676316,5.5399,180.48,180.45,5.5408]
[1755695676511,5.5399,180.48,180.39,2.98]
[1755695677318,5.5403,180.47,180.39,2.98]
[1755695677521,0.27,180.5,180.39,2.98]
[1755695677722,5.8101,180.48,180.44,5.5409]
[1755695677936,5.8101,180.48,180.44,8.5209]
[1755695678232,5.8101,180.48,180.44,8.521]
[1755695678626,0.27,180.47,180.44,8.521]
[1755695679336,0.27,180.46,180.44,5.541]
[1755695679528,5.8103,180.47,180.43,8.5214]
[1755695679729,5.8103,180.47,180.44,2.98]
[1755695679926,6.18717164,180.56,180.38,0.96438964]
[1755695680228,3.09399782,180.53,180.46,5.5405]
[1755695680426,4.35007927,180.52,180.46,5.5405]
[1755695680625,5.8096,180.49,180.46,5.5405]
[1755695681430,0.27,180.49,180.47,5.5402]
[1755695681630,5.8094,180.5,180.46,2.98]
[1755695681932,5.8097,180.49,180.46,2.98]
[1755695682130,3.09399782,180.53,180.43,2.98]
[1755695682332,0.27,180.51,180.43,2.98]
[1755695682531,5.7998,180.49,180.46,5.5404]
[1755695683037,0.26,180.49,180.46,2.98]
[1755695683238,0.26,180.52,180.39,2.98]
[1755695683438,4.09635206,180.51,180.39,2.98]
[1755695683735,0.26,180.52,180.39,2.98]
[1755695683930,4.09525641,180.51,180.39,2.98]
[1755695684131,0.26,180.52,180.39,2.98]
[1755695684331,4.09512744,180.51,180.39,2.98]
[1755695684530,5.5397,180.49,180.46,5.5404]
[1755695684730,5.7997,180.49,180.46,5.5404]
[1755695685137,5.7997,180.49,180.45,5.5408]
[1755695685324,5.5397,180.49,180.45,8.5208]
[1755695685525,5.7997,180.49,180.45,8.5208]
[1755695685935,0.26,180.48,180.45,8.5208]
[1755695686630,3.09399782,180.53,180.45,2.98]
[1755695686838,4.0949012,180.52,180.45,2.98]
[1755695687036,3.35399782,180.53,180.45,2.98]
[1755695687234,0.26,180.5,180.46,2.98]
[1755695687640,5.5395,180.5,180.46,8.5203]
[1755695687833,0.26,180.49,180.46,2.98]
[1755695688628,0.26,180.49,180.47,5.54]
[1755695689537,0.26,180.49,180.46,2.98]
[1755695690035,0.26,180.5,180.47,5.54]
[1755695690231,0.26,180.52,180.46,2.98]
[1755695690432,5.7996,180.5,180.46,2.98]
[1755695690633,5.5396,180.5,180.46,8.5203]
[1755695690836,0.26,180.49,180.46,2.98]
[1755695691140,0.26,180.49,180.47,5.5401]
[1755695691335,5.5391,180.51,180.4,3.09399782]
[1755695691633,0.26,180.5,180.41,2.98]
[1755695692037,0.26,180.49,180.47,5.5402]
[1755695692340,0.26,180.49,180.45,2.98]
[1755695692839,3.09399782,180.53,180.46,5.5404]
[1755695692840,0.26,180.52,180.46,5.5404]
[1755695693041,4.09081208,180.51,180.46,5.5404]
[1755695693242,0.26,180.49,180.46,8.5204]
[1755695693543,0.26,180.52,180.46,5.5404]
[1755695693738,3.09399782,180.53,180.47,5.5402]
[1755695693931,0.26,180.5,180.47,5.5402]
[1755695694340,0.26,180.49,180.46,8.5204]
[1755695695041,0.26,180.49,180.47,5.5402]
[1755695695236,5.5395,180.5,180.47,5.5402]
[1755695695536,5.7995,180.5,180.47,5.5402]
[1755695695732,0.26,180.5,180.47,8.4402]
[1755695695937,0.25,180.49,180.47,8.4402]
[1755695696241,0.25,180.49,180.48,5.5399]
[1755695696435,5.7891,180.51,180.48,5.5399]
[1755695696645,5.7891,180.51,180.48,8.4399]
[1755695696833,5.5391,180.51,180.48,8.4399]
[1755695697035,5.7891,180.51,180.48,8.4399]
[1755695697237,0.25,180.5,180.48,8.4399]
[1755695697440,0.25,180.5,180.48,5.5399]
[1755695697642,0.25,180.48,180.45,2.9]
[1755695697841,0.25,180.49,180.4,2.9]
[1755695698243,5.5399,180.48,180.4,2.9]
[1755695698741,0.25,180.47,180.4,2.9]
[1755695698946,5.7905,180.46,180.42,8.4417]
[1755695699445,5.7909,180.45,180.42,2.9]
[1755695699640,0.25,180.44,180.41,5.542]
[1755695699840,5.7912,180.44,180.39,2.9]
[1755695700041,0.25,180.45,180.36,2.9]
[1755695700637,0.03907881,180.42,180.36,2.9]
[1755695700841,0.03907881,180.42,180.4,5.5423]
[1755695701353,0.03907881,180.42,180.41,5.5421]
[1755695701542,0.03907881,180.42,180.41,8.4421]
[1755695701849,0.03907881,180.42,180.39,2.9]
[1755695702050,0.03907881,180.42,180.35,2.9]
[1755695702443,0.03907881,180.42,180.41,5.5421]
[1755695702843,0.28907881,180.42,180.35,2.9]
[1755695703045,0.03907881,180.42,180.35,2.9]
[1755695703643,0.03907881,180.42,180.41,5.5421]
[1755695703844,0.03907881,180.42,180.41,8.4421]
[1755695705447,0.03907881,180.42,180.37,2.9]
[1755695705646,0.28907881,180.42,180.38,2.9]
[1755695705855,0.28907881,180.42,180.41,5.5421]
[1755695707448,0.03907881,180.42,180.41,5.5421]
[1755695707848,0.03907881,180.42,180.41,8.4421]
[1755695708751,0.25,180.5,180.47,5.54]
[1755695709050,106.02604462,180.53,180.43,2.9]
[1755695709051,106.27604462,180.53,180.43,2.9]
[1755695709255,4.33381047,180.52,180.43,2.9]
[1755695709456,0.25,180.52,180.43,2.9]
[1755695709657,0.25,180.47,180.36,2.9]
[1755695710052,0.25,180.47,180.41,5.5419]
[1755695710053,5.5409,180.45,180.41,5.5419]
[1755695710253,0.25,180.44,180.4,0.0349375]
[1755695710451,3.09399782,180.45,180.4,0.0349375]
[1755695710647,5.7919,180.42,180.4,0.0349375]
[1755695710851,0.25,180.42,180.36,2.9]
[1755695711255,5.792,180.42,180.39,0.03937547]
[1755695711652,0.25,180.41,180.39,0.03937547]
[1755695711853,0.25,180.41,180.39,5.58187547]
[1755695713055,3.09399782,180.45,180.39,0.03937547]
[1755695713253,0.25,180.41,180.39,0.03937547]
[1755695713560,5.7924,180.4,180.39,0.03937547]
[1755695713754,3.09399782,180.42,180.35,5.5437]
[1755695713954,0.25,180.39,180.35,8.4437]
[1755695714155,5.7928,180.39,180.38,0.03722931]
[1755695715358,5.544,180.35,180.31,2.9]
[1755695715850,5.794,180.35,180.31,2.9]
[1755695716056,138.76,180.44,180.26,0.96509838]
[1755695716057,5.5437,180.36,180.26,0.96509838]
[1755695716249,3.09399782,180.41,180.28,3.09399782]
[1755695716465,4.34379529,180.4,180.29,2.9]
[1755695716650,0.25,180.4,180.27,2.9]
[1755695716853,3.34399782,180.4,180.27,2.9]
[1755695717251,5.5432,180.38,180.27,2.9]
[1755695717462,5.5432,180.38,180.28,2.9]
[1755695717657,3.34399782,180.4,180.28,2.9]
[1755695717849,4.0896347,180.39,180.28,2.9]
[1755695718054,3.34399782,180.4,180.28,2.9]
[1755695718250,0.25,180.36,180.28,2.9]